[Event "Titled Tuesday Blitz January 17 Early 2023"]
[White "Bruned, Yvain"]
[Black "Wagner, Dennis"]
[WhiteFideId "2250292"]
[BlackFideId "24650684"]
[WhiteElo "2286"]
[BlackElo "2595"]
[Result "0-1"]
[Round "09"]
[TimeControl "180+2"]
[Date "2023.01.17"]
[WhiteClock "0:00:02"]
[BlackClock "0:00:19"]

1. b3 {[%clk 0:03:00]}  g6 {[%clk 0:02:58]} 2. Bb2 {[%clk 0:03:00]}  Nf6 {[%clk 0:02:59]} 3. Bxf6 {[%clk 0:03:01]}  exf6 {[%clk 0:03:00]} 4. c4 {[%clk 0:03:01]}  d5 {[%clk 0:03:00]} 5. cxd5 {[%clk 0:03:01]}  Qxd5 {[%clk 0:03:01]} 6. Nc3 {[%clk 0:03:01]}  Qd8 {[%clk 0:03:00]} 7. g3 {[%clk 0:03:01]}  h5 {[%clk 0:02:56]} 8. h4 {[%clk 0:03:01]}  c6 {[%clk 0:02:53]} 9. Bg2 {[%clk 0:03:01]}  Ba3 {[%clk 0:02:53]} 10. e3 {[%clk 0:03:01]}  O-O {[%clk 0:02:52]} 11. Nge2 {[%clk 0:03:00]}  Bg4 {[%clk 0:02:48]} 12. d4 {[%clk 0:02:53]}  Bb2 {[%clk 0:02:47]} 13. f3 {[%clk 0:02:38]}  Bxa1 {[%clk 0:02:47]} 14. Qxa1 {[%clk 0:02:36]}  Be6 {[%clk 0:02:48]} 15. O-O {[%clk 0:02:36]}  Na6 {[%clk 0:02:44]} 16. Ne4 {[%clk 0:02:33]}  f5 {[%clk 0:02:27]} 17. Ng5 {[%clk 0:02:23]}  Bd7 {[%clk 0:02:25]} 18. Nf4 {[%clk 0:02:08]}  Qe8 {[%clk 0:01:51]} 19. e4 {[%clk 0:01:09]}  f6 {[%clk 0:01:51]} 20. Ngh3 {[%clk 0:01:07]}  fxe4 {[%clk 0:01:52]} 21. fxe4 {[%clk 0:01:02]}  c5 {[%clk 0:01:42]} 22. e5 {[%clk 0:00:44]}  cxd4 {[%clk 0:01:34]} 23. exf6 {[%clk 0:00:34]}  Bxh3 {[%clk 0:01:34]} 24. Nxh3 {[%clk 0:00:33]}  Qe3+ {[%clk 0:01:23]} 25. Kh2 {[%clk 0:00:32]}  Nc5 {[%clk 0:01:22]} 26. Ng5 {[%clk 0:00:24]}  Rad8 {[%clk 0:01:12]} 27. Re1 {[%clk 0:00:18]}  Qc3 {[%clk 0:01:08]} 28. f7+ {[%clk 0:00:15]}  Kg7 {[%clk 0:01:03]} 29. Qd1 {[%clk 0:00:13]}  d3 {[%clk 0:00:54]} 30. b4 {[%clk 0:00:11]}  Qxb4 {[%clk 0:00:52]} 31. Qa1+ {[%clk 0:00:10]}  Qd4 {[%clk 0:00:49]} 32. Qb1 {[%clk 0:00:06]}  b6 {[%clk 0:00:34]} 33. Rd1 {[%clk 0:00:06]}  Rd6 {[%clk 0:00:29]} 34. a3 {[%clk 0:00:05]}  Rf6 {[%clk 0:00:28]} 35. Rd2 {[%clk 0:00:04]}  Rf2 {[%clk 0:00:24]} 36. Qb4 {[%clk 0:00:04]}  Qxb4 {[%clk 0:00:23]} 37. axb4 {[%clk 0:00:02]}  Rxd2 {[%clk 0:00:24]} 38. bxc5 {[%clk 0:00:02]}  Rxf7 {[%clk 0:00:23]} 39. c6 {[%clk 0:00:02]}  Rc2 {[%clk 0:00:20]} 40. Ne6+ {[%clk 0:00:02]}  Kf6 {[%clk 0:00:20]} 41. Nd4 {[%clk 0:00:03]}  Rxg2+ {[%clk 0:00:18]} 42. Kxg2 {[%clk 0:00:02]}  d2 {[%clk 0:00:19]} 0-1


[Site "https://www.chess.com"]

[Event "Titled Tuesday Blitz January 17 Early 2023"]
[White "Agasarov, Benik"]
[Black "Guliev, Logman"]
[WhiteFideId "13314823"]
[BlackFideId "13400061"]
[WhiteElo "2235"]
[BlackElo "2250"]
[Result "1-0"]
[Round "09"]
[TimeControl "180+2"]
[Date "2023.01.17"]
[WhiteClock "0:02:01"]
[BlackClock "0:00:08"]

1. d4 {[%clk 0:02:59]}  Nf6 {[%clk 0:02:54]} 2. c4 {[%clk 0:02:59]}  e6 {[%clk 0:02:53]} 3. Nf3 {[%clk 0:02:46]}  Bb4+ {[%clk 0:02:52]} 4. Nc3 {[%clk 0:02:44]}  O-O {[%clk 0:02:51]} 5. Bg5 {[%clk 0:02:43]}  h6 {[%clk 0:02:49]} 6. Bh4 {[%clk 0:02:43]}  b6 {[%clk 0:02:49]} 7. e4 {[%clk 0:02:40]}  d6 {[%clk 0:02:30]} 8. Bd3 {[%clk 0:02:37]}  e5 {[%clk 0:02:24]} 9. O-O {[%clk 0:02:34]}  Bxc3 {[%clk 0:02:20]} 10. bxc3 {[%clk 0:02:33]}  Bg4 {[%clk 0:02:20]} 11. h3 {[%clk 0:02:29]}  Bxf3 {[%clk 0:02:20]} 12. Qxf3 {[%clk 0:02:30]}  Nbd7 {[%clk 0:02:20]} 13. Qe3 {[%clk 0:02:25]}  Re8 {[%clk 0:02:10]} 14. f4 {[%clk 0:02:23]}  exf4 {[%clk 0:02:05]} 15. Qxf4 {[%clk 0:02:18]}  g5 {[%clk 0:01:54]} 16. Bxg5 {[%clk 0:02:17]}  hxg5 {[%clk 0:01:54]} 17. Qxg5+ {[%clk 0:02:18]}  Kh8 {[%clk 0:01:34]} 18. e5 {[%clk 0:02:09]}  dxe5 {[%clk 0:01:21]} 19. Qh6+ {[%clk 0:02:08]}  Kg8 {[%clk 0:01:19]} 20. Rf5 {[%clk 0:02:08]}  Nh7 {[%clk 0:00:58]} 21. Rh5 {[%clk 0:02:00]}  e4 {[%clk 0:00:10]} 22. Qxh7+ {[%clk 0:02:00]}  Kf8 {[%clk 0:00:11]} 23. Rf1 {[%clk 0:02:01]}  Nf6 {[%clk 0:00:08]} 24. Qh6+ {[%clk 0:02:01]} 1-0


[Site "https://www.chess.com"]

[Event "Titled Tuesday Blitz January 17 Early 2023"]
[White "Bychkov, Vladimir"]
[Black "Arabidze, Meri"]
[WhiteFideId "24151513"]
[BlackFideId "13604040"]
[WhiteElo "2225"]
[BlackElo "2441"]
[Result "0-1"]
[Round "09"]
[TimeControl "180+2"]
[Date "2023.01.17"]
[WhiteClock "0:00:16"]
[BlackClock "0:00:22"]

1. Nf3 {[%clk 0:03:00]}  f5 {[%clk 0:02:58]} 2. c4 {[%clk 0:02:59]}  Nf6 {[%clk 0:02:58]} 3. Nc3 {[%clk 0:03:00]}  e6 {[%clk 0:02:59]} 4. d4 {[%clk 0:02:59]}  Bb4 {[%clk 0:02:57]} 5. g3 {[%clk 0:02:54]}  b6 {[%clk 0:02:57]} 6. Bg2 {[%clk 0:02:53]}  Bb7 {[%clk 0:02:57]} 7. Bd2 {[%clk 0:02:53]}  O-O {[%clk 0:02:56]} 8. Nb1 {[%clk 0:02:52]}  Be7 {[%clk 0:02:54]} 9. Bg5 {[%clk 0:02:52]}  Ne4 {[%clk 0:02:52]} 10. Bxe7 {[%clk 0:02:51]}  Qxe7 {[%clk 0:02:53]} 11. Nfd2 {[%clk 0:02:49]}  Nc3 {[%clk 0:02:21]} 12. Nxc3 {[%clk 0:02:48]}  Bxg2 {[%clk 0:02:21]} 13. Rg1 {[%clk 0:02:48]}  Bb7 {[%clk 0:02:21]} 14. e3 {[%clk 0:02:46]}  d6 {[%clk 0:02:20]} 15. Qe2 {[%clk 0:02:44]}  Nd7 {[%clk 0:02:20]} 16. h4 {[%clk 0:02:30]}  c5 {[%clk 0:02:19]} 17. h5 {[%clk 0:02:29]}  Nf6 {[%clk 0:02:08]} 18. h6 {[%clk 0:02:26]}  g6 {[%clk 0:02:08]} 19. O-O-O {[%clk 0:02:23]}  Rac8 {[%clk 0:02:06]} 20. Kb1 {[%clk 0:02:18]}  Ng4 {[%clk 0:02:06]} 21. f3 {[%clk 0:02:16]}  Nxh6 {[%clk 0:02:05]} 22. Rh1 {[%clk 0:02:15]}  Nf7 {[%clk 0:01:58]} 23. Rh2 {[%clk 0:02:14]}  Ng5 {[%clk 0:01:46]} 24. d5 {[%clk 0:02:12]}  exd5 {[%clk 0:01:42]} 25. cxd5 {[%clk 0:02:10]}  Rce8 {[%clk 0:01:34]} 26. f4 {[%clk 0:02:00]}  Nf7 {[%clk 0:01:26]} 27. e4 {[%clk 0:01:59]}  Bc8 {[%clk 0:01:10]} 28. Rdh1 {[%clk 0:01:58]}  h6 {[%clk 0:01:08]} 29. e5 {[%clk 0:01:18]}  dxe5 {[%clk 0:01:07]} 30. fxe5 {[%clk 0:01:18]}  Qxe5 {[%clk 0:01:05]} 31. Qxe5 {[%clk 0:01:17]}  Rxe5 {[%clk 0:01:06]} 32. Nc4 {[%clk 0:01:18]}  Re7 {[%clk 0:01:00]} 33. d6 {[%clk 0:01:00]}  Re6 {[%clk 0:00:59]} 34. Nb5 {[%clk 0:00:50]}  Ba6 {[%clk 0:00:56]} 35. a4 {[%clk 0:00:36]}  h5 {[%clk 0:00:56]} 36. Rd1 {[%clk 0:00:29]}  Rd8 {[%clk 0:00:56]} 37. b3 {[%clk 0:00:26]}  Bxb5 {[%clk 0:00:46]} 38. axb5 {[%clk 0:00:27]}  Ng5 {[%clk 0:00:40]} 39. Ra2 {[%clk 0:00:27]}  Rd7 {[%clk 0:00:37]} 40. Rd5 {[%clk 0:00:25]}  Ne4 {[%clk 0:00:36]} 41. Kc1 {[%clk 0:00:24]}  Nc3 {[%clk 0:00:35]} 42. Rad2 {[%clk 0:00:24]}  Nxd5 {[%clk 0:00:34]} 43. Rxd5 {[%clk 0:00:25]}  Kg7 {[%clk 0:00:31]} 44. Kd2 {[%clk 0:00:25]}  Kf6 {[%clk 0:00:31]} 45. Rd3 {[%clk 0:00:25]}  g5 {[%clk 0:00:31]} 46. Kc3 {[%clk 0:00:23]}  h4 {[%clk 0:00:30]} 47. gxh4 {[%clk 0:00:23]}  gxh4 {[%clk 0:00:30]} 48. Rd1 {[%clk 0:00:23]}  f4 {[%clk 0:00:27]} 49. Rg1 {[%clk 0:00:23]}  Kf5 {[%clk 0:00:25]} 50. Rg8 {[%clk 0:00:22]}  h3 {[%clk 0:00:23]} 51. Rh8 {[%clk 0:00:20]}  Kg4 {[%clk 0:00:23]} 52. Rg8+ {[%clk 0:00:18]}  Kh5 {[%clk 0:00:22]} 53. Rh8+ {[%clk 0:00:18]}  Rh6 {[%clk 0:00:22]} 54. Rxh6+ {[%clk 0:00:15]}  Kxh6 {[%clk 0:00:22]} 55. Ne5 {[%clk 0:00:16]}  Rxd6 {[%clk 0:00:22]} 0-1


[Site "https://www.chess.com"]

[Event "Titled Tuesday Blitz January 17 Early 2023"]
[White "Belozerov, Andrei"]
[Black "Bosnjak, Petar"]
[WhiteFideId "4120213"]
[BlackFideId "14532581"]
[WhiteElo "2461"]
[BlackElo "2337"]
[Result "0-1"]
[Round "09"]
[TimeControl "180+2"]
[Date "2023.01.17"]
[WhiteClock "0:00:13"]
[BlackClock "0:00:57"]

1. d4 {[%clk 0:03:00]}  d5 {[%clk 0:02:50]} 2. c4 {[%clk 0:02:59]}  c6 {[%clk 0:02:50]} 3. Nf3 {[%clk 0:02:58]}  Nf6 {[%clk 0:02:50]} 4. g3 {[%clk 0:02:58]}  Bg4 {[%clk 0:02:50]} 5. Ne5 {[%clk 0:02:58]}  Bf5 {[%clk 0:02:50]} 6. cxd5 {[%clk 0:02:57]}  cxd5 {[%clk 0:02:50]} 7. Nc3 {[%clk 0:02:56]}  e6 {[%clk 0:02:46]} 8. Qb3 {[%clk 0:02:43]}  Qb6 {[%clk 0:02:43]} 9. Qxb6 {[%clk 0:02:31]}  axb6 {[%clk 0:02:43]} 10. e3 {[%clk 0:02:30]}  Nc6 {[%clk 0:02:40]} 11. Bb5 {[%clk 0:02:28]}  Rc8 {[%clk 0:02:39]} 12. Bd2 {[%clk 0:02:26]}  Bd6 {[%clk 0:02:37]} 13. Nd3 {[%clk 0:01:58]}  Ke7 {[%clk 0:02:31]} 14. Ke2 {[%clk 0:01:56]}  h5 {[%clk 0:02:27]} 15. f3 {[%clk 0:01:53]}  g5 {[%clk 0:02:25]} 16. Nf2 {[%clk 0:01:14]}  g4 {[%clk 0:02:23]} 17. Na4 {[%clk 0:01:03]}  gxf3+ {[%clk 0:02:17]} 18. Kxf3 {[%clk 0:01:03]}  Ne4 {[%clk 0:02:17]} 19. Ke2 {[%clk 0:00:54]}  Na7 {[%clk 0:02:17]} 20. Bd3 {[%clk 0:00:43]}  Nxf2 {[%clk 0:01:37]} 21. Bxf5 {[%clk 0:00:43]}  Nxh1 {[%clk 0:01:35]} 22. Bd3 {[%clk 0:00:39]}  Nxg3+ {[%clk 0:01:29]} 23. hxg3 {[%clk 0:00:38]}  Bxg3 {[%clk 0:01:30]} 24. Nxb6 {[%clk 0:00:38]}  Rcg8 {[%clk 0:01:24]} 25. a4 {[%clk 0:00:28]}  Nc6 {[%clk 0:01:18]} 26. b4 {[%clk 0:00:26]}  Bd6 {[%clk 0:01:17]} 27. b5 {[%clk 0:00:25]}  Rg2+ {[%clk 0:01:13]} 28. Ke1 {[%clk 0:00:18]}  Bb4 {[%clk 0:01:11]} 29. bxc6 {[%clk 0:00:17]}  Rxd2 {[%clk 0:01:06]} 30. Rb1 {[%clk 0:00:13]}  Rb2+ {[%clk 0:00:57]} 31. Kd1 {[%clk 0:00:13]}  Rxb1+ {[%clk 0:00:57]} 32. Bxb1 {[%clk 0:00:13]}  bxc6 {[%clk 0:00:57]} 0-1


[Site "https://www.chess.com"]

[Event "Titled Tuesday Blitz January 17 Early 2023"]
[White "UnknownMagician"]
[Black "Salman, Pavel"]
[BlackFideId "24153753"]
[WhiteElo "2637"]
[BlackElo "2287"]
[Result "0-1"]
[Round "09"]
[TimeControl "180+2"]
[Date "2023.01.17"]
[WhiteClock "0:00:03"]
[BlackClock "0:00:17"]

1. c4 {[%clk 0:03:00]}  c5 {[%clk 0:02:56]} 2. Nf3 {[%clk 0:03:00]}  Nf6 {[%clk 0:02:50]} 3. g3 {[%clk 0:03:00]}  b6 {[%clk 0:02:50]} 4. Bg2 {[%clk 0:02:56]}  Bb7 {[%clk 0:02:51]} 5. O-O {[%clk 0:02:57]}  e6 {[%clk 0:02:51]} 6. Nc3 {[%clk 0:02:56]}  Be7 {[%clk 0:02:51]} 7. b3 {[%clk 0:02:53]}  O-O {[%clk 0:02:50]} 8. Bb2 {[%clk 0:02:54]}  a6 {[%clk 0:02:50]} 9. d4 {[%clk 0:02:51]}  cxd4 {[%clk 0:02:50]} 10. Qxd4 {[%clk 0:02:52]}  d6 {[%clk 0:02:50]} 11. Rad1 {[%clk 0:02:46]}  Nbd7 {[%clk 0:02:50]} 12. Rfe1 {[%clk 0:02:39]}  Qb8 {[%clk 0:02:49]} 13. Bh3 {[%clk 0:02:36]}  Ra7 {[%clk 0:02:40]} 14. Ng5 {[%clk 0:02:29]}  h6 {[%clk 0:02:27]} 15. Nge4 {[%clk 0:02:29]}  Nc5 {[%clk 0:02:00]} 16. Nxf6+ {[%clk 0:02:08]}  Bxf6 {[%clk 0:01:48]} 17. Qxd6 {[%clk 0:02:07]}  Qc8 {[%clk 0:01:30]} 18. Qd2 {[%clk 0:02:01]}  Ba8 {[%clk 0:01:29]} 19. b4 {[%clk 0:01:48]}  Qc6 {[%clk 0:01:17]} 20. f3 {[%clk 0:01:41]}  Rd7 {[%clk 0:01:12]} 21. Qc1 {[%clk 0:01:27]}  Nb7 {[%clk 0:01:10]} 22. Rxd7 {[%clk 0:01:19]}  Qxd7 {[%clk 0:01:11]} 23. Ne4 {[%clk 0:01:14]}  Bxb2 {[%clk 0:01:07]} 24. Qxb2 {[%clk 0:01:14]}  Nd6 {[%clk 0:01:08]} 25. Qd4 {[%clk 0:01:08]}  Bxe4 {[%clk 0:01:01]} 26. fxe4 {[%clk 0:01:05]}  Qc6 {[%clk 0:00:58]} 27. Rc1 {[%clk 0:00:50]}  Qxe4 {[%clk 0:00:45]} 28. Qxe4 {[%clk 0:00:37]}  Nxe4 {[%clk 0:00:46]} 29. Bg2 {[%clk 0:00:36]}  Nd6 {[%clk 0:00:43]} 30. c5 {[%clk 0:00:35]}  bxc5 {[%clk 0:00:43]} 31. bxc5 {[%clk 0:00:36]}  Rc8 {[%clk 0:00:44]} 32. Kf2 {[%clk 0:00:30]}  Rc7 {[%clk 0:00:43]} 33. Ke3 {[%clk 0:00:21]}  Nf5+ {[%clk 0:00:40]} 34. Ke4 {[%clk 0:00:17]}  Kf8 {[%clk 0:00:40]} 35. g4 {[%clk 0:00:15]}  Nd6+ {[%clk 0:00:33]} 36. Ke5 {[%clk 0:00:10]}  Nc8 {[%clk 0:00:29]} 37. c6 {[%clk 0:00:03]}  Ke7 {[%clk 0:00:28]} 38. Rd1 {[%clk 0:00:04]}  Na7 {[%clk 0:00:29]} 39. Rc1 {[%clk 0:00:03]}  f6+ {[%clk 0:00:28]} 40. Kd4 {[%clk 0:00:03]}  Kd6 {[%clk 0:00:28]} 41. Rd1 {[%clk 0:00:02]}  Nxc6+ {[%clk 0:00:27]} 42. Ke3+ {[%clk 0:00:03]}  Ke7 {[%clk 0:00:26]} 43. Rc1 {[%clk 0:00:03]}  Kd7 {[%clk 0:00:26]} 44. Rd1+ {[%clk 0:00:03]}  Ke7 {[%clk 0:00:15]} 45. Rc1 {[%clk 0:00:04]}  Kd6 {[%clk 0:00:15]} 46. Rd1+ {[%clk 0:00:04]}  Kc5 {[%clk 0:00:16]} 47. Rc1+ {[%clk 0:00:04]}  Kb6 {[%clk 0:00:16]} 48. Rb1+ {[%clk 0:00:05]}  Ka7 {[%clk 0:00:17]} 49. Rc1 {[%clk 0:00:05]}  Kb7 {[%clk 0:00:17]} 50. Rb1+ {[%clk 0:00:05]}  Kc8 {[%clk 0:00:17]} 51. Rc1 {[%clk 0:00:06]}  Ne7 {[%clk 0:00:18]} 52. Rd1 {[%clk 0:00:06]}  Rd7 {[%clk 0:00:17]} 53. Rb1 {[%clk 0:00:05]}  Nd5+ {[%clk 0:00:17]} 54. Ke4 {[%clk 0:00:03]}  Nc3+ {[%clk 0:00:17]} 0-1


[Site "https://www.chess.com"]

[Event "Titled Tuesday Blitz January 17 Early 2023"]
[White "Maksimenko, Viktor"]
[Black "Kvaloy, Aksel Bu"]
[WhiteFideId "13710478"]
[BlackFideId "1528815"]
[WhiteElo "2196"]
[BlackElo "2321"]
[Result "0-1"]
[Round "09"]
[TimeControl "180+2"]
[Date "2023.01.17"]
[WhiteClock "0:00:16"]
[BlackClock "0:01:04"]

1. d4 {[%clk 0:02:22]}  Nf6 {[%clk 0:02:58]} 2. c4 {[%clk 0:02:23]}  e6 {[%clk 0:02:58]} 3. Nf3 {[%clk 0:02:23]}  d5 {[%clk 0:02:59]} 4. g3 {[%clk 0:02:23]}  dxc4 {[%clk 0:02:59]} 5. Bg2 {[%clk 0:02:23]}  c6 {[%clk 0:02:59]} 6. O-O {[%clk 0:02:12]}  b5 {[%clk 0:02:59]} 7. Ne5 {[%clk 0:02:13]}  Bb7 {[%clk 0:02:58]} 8. b3 {[%clk 0:02:12]}  cxb3 {[%clk 0:02:58]} 9. Qxb3 {[%clk 0:02:13]}  Qxd4 {[%clk 0:02:57]} 10. Bb2 {[%clk 0:02:13]}  Qb4 {[%clk 0:02:57]} 11. Qc2 {[%clk 0:02:10]}  Qc5 {[%clk 0:02:57]} 12. Qd3 {[%clk 0:01:57]}  Be7 {[%clk 0:02:50]} 13. Rc1 {[%clk 0:01:56]}  Qd6 {[%clk 0:02:49]} 14. Qb3 {[%clk 0:01:55]}  O-O {[%clk 0:02:46]} 15. a4 {[%clk 0:01:54]}  a6 {[%clk 0:02:43]} 16. Na3 {[%clk 0:01:49]}  Nd5 {[%clk 0:02:23]} 17. e4 {[%clk 0:01:39]}  Nb6 {[%clk 0:02:16]} 18. a5 {[%clk 0:01:38]}  Na4 {[%clk 0:02:15]} 19. Nac4 {[%clk 0:01:24]}  Qc7 {[%clk 0:02:01]} 20. Rxa4 {[%clk 0:01:21]}  bxa4 {[%clk 0:02:00]} 21. Qxa4 {[%clk 0:01:22]}  Bf6 {[%clk 0:01:46]} 22. Rb1 {[%clk 0:00:58]}  c5 {[%clk 0:01:33]} 23. Qb3 {[%clk 0:00:41]}  Nc6 {[%clk 0:01:25]} 24. Nxc6 {[%clk 0:00:35]}  Bxb2 {[%clk 0:01:25]} 25. Qxb2 {[%clk 0:00:20]}  Bxc6 {[%clk 0:01:26]} 26. Qa3 {[%clk 0:00:18]}  Bb5 {[%clk 0:01:25]} 27. Rc1 {[%clk 0:00:18]}  Bxc4 {[%clk 0:01:11]} 28. Rxc4 {[%clk 0:00:19]}  Rac8 {[%clk 0:01:09]} 29. Bf3 {[%clk 0:00:17]}  Rfd8 {[%clk 0:01:09]} 30. Be2 {[%clk 0:00:14]}  Rd4 {[%clk 0:01:01]} 31. Rxd4 {[%clk 0:00:15]}  cxd4 {[%clk 0:01:02]} 32. Bxa6 {[%clk 0:00:15]}  Qc1+ {[%clk 0:01:03]} 33. Qxc1 {[%clk 0:00:15]}  Rxc1+ {[%clk 0:01:04]} 34. Kg2 {[%clk 0:00:16]}  Ra1 {[%clk 0:01:04]} 0-1


[Site "https://www.chess.com"]

[Event "Titled Tuesday Blitz January 17 Early 2023"]
[White "Sreyas Payyappat"]
[Black "Yelisieiev, Yevhenii"]
[WhiteFideId "46674969"]
[BlackFideId "14139642"]
[WhiteElo "2076"]
[BlackElo "2418"]
[Result "0-1"]
[Round "09"]
[TimeControl "180+2"]
[Date "2023.01.17"]
[WhiteClock "0:00:32"]
[BlackClock "0:00:47"]

1. e4 {[%clk 0:03:00]}  d6 {[%clk 0:02:58]} 2. d4 {[%clk 0:03:00]}  Nf6 {[%clk 0:02:59]} 3. Nc3 {[%clk 0:03:00]}  e5 {[%clk 0:02:59]} 4. dxe5 {[%clk 0:03:00]}  dxe5 {[%clk 0:03:00]} 5. Qxd8+ {[%clk 0:03:00]}  Kxd8 {[%clk 0:03:01]} 6. Bg5 {[%clk 0:03:01]}  c6 {[%clk 0:03:01]} 7. O-O-O+ {[%clk 0:03:02]}  Ke8 {[%clk 0:03:01]} 8. f4 {[%clk 0:03:02]}  Nbd7 {[%clk 0:02:57]} 9. Nf3 {[%clk 0:03:01]}  h6 {[%clk 0:02:55]} 10. Bxf6 {[%clk 0:03:00]}  gxf6 {[%clk 0:02:55]} 11. f5 {[%clk 0:03:00]}  Bb4 {[%clk 0:02:51]} 12. Bd3 {[%clk 0:02:57]}  Bxc3 {[%clk 0:02:44]} 13. bxc3 {[%clk 0:02:58]}  Rg8 {[%clk 0:02:42]} 14. Rhg1 {[%clk 0:02:57]}  Ke7 {[%clk 0:02:37]} 15. g4 {[%clk 0:02:57]}  Nc5 {[%clk 0:02:36]} 16. h4 {[%clk 0:02:56]}  Bd7 {[%clk 0:02:30]} 17. Kd2 {[%clk 0:02:50]}  Rg7 {[%clk 0:02:14]} 18. g5 {[%clk 0:02:48]}  hxg5 {[%clk 0:02:14]} 19. hxg5 {[%clk 0:02:49]}  fxg5 {[%clk 0:02:14]} 20. Nxe5 {[%clk 0:02:49]}  Rd8 {[%clk 0:01:59]} 21. Rdf1 {[%clk 0:02:43]}  f6 {[%clk 0:01:54]} 22. Ng6+ {[%clk 0:02:42]}  Kd6 {[%clk 0:01:53]} 23. Ke3 {[%clk 0:02:17]}  Rh7 {[%clk 0:01:49]} 24. Rh1 {[%clk 0:02:12]}  Rxh1 {[%clk 0:01:39]} 25. Rxh1 {[%clk 0:02:12]}  Be8 {[%clk 0:01:40]} 26. Rh8 {[%clk 0:02:07]}  Kc7 {[%clk 0:01:31]} 27. Nf8 {[%clk 0:01:49]}  Bf7 {[%clk 0:01:26]} 28. a3 {[%clk 0:01:41]}  Nd7 {[%clk 0:01:17]} 29. Ng6 {[%clk 0:01:04]}  Bxg6 {[%clk 0:01:12]} 30. Rxd8 {[%clk 0:01:01]}  Kxd8 {[%clk 0:01:12]} 31. fxg6 {[%clk 0:01:02]}  Ke7 {[%clk 0:01:12]} 32. Bc4 {[%clk 0:01:00]}  Kf8 {[%clk 0:01:10]} 33. Be6 {[%clk 0:00:49]}  Ne5 {[%clk 0:01:07]} 34. Kd4 {[%clk 0:00:47]}  b6 {[%clk 0:00:57]} 35. Bf5 {[%clk 0:00:44]}  Kg7 {[%clk 0:00:57]} 36. a4 {[%clk 0:00:40]}  Nxg6 {[%clk 0:00:56]} 37. a5 {[%clk 0:00:39]}  bxa5 {[%clk 0:00:51]} 38. Kc5 {[%clk 0:00:38]}  Ne5 {[%clk 0:00:51]} 39. Bh3 {[%clk 0:00:36]}  g4 {[%clk 0:00:51]} 40. Bg2 {[%clk 0:00:34]}  Kg6 {[%clk 0:00:49]} 41. Bf1 {[%clk 0:00:32]}  Kg5 {[%clk 0:00:47]} 42. Kd4 {[%clk 0:00:32]}  Kf4 {[%clk 0:00:47]} 0-1


[Site "https://www.chess.com"]

[Event "Titled Tuesday Blitz January 17 Early 2023"]
[White "Manukian, Artak"]
[Black "Aizpurua, Patrick Emilio"]
[WhiteFideId "13301373"]
[BlackFideId "6600522"]
[WhiteElo "2196"]
[BlackElo "2304"]
[Result "1-0"]
[Round "09"]
[TimeControl "180+2"]
[Date "2023.01.17"]
[WhiteClock "0:01:12"]
[BlackClock "0:01:03"]

1. e4 {[%clk 0:03:00]}  c5 {[%clk 0:02:59]} 2. Nf3 {[%clk 0:03:00]}  e6 {[%clk 0:02:59]} 3. c3 {[%clk 0:03:00]}  d5 {[%clk 0:02:58]} 4. e5 {[%clk 0:03:00]}  Nc6 {[%clk 0:02:58]} 5. d4 {[%clk 0:03:01]}  Qb6 {[%clk 0:02:58]} 6. a3 {[%clk 0:03:00]}  c4 {[%clk 0:02:59]} 7. Nbd2 {[%clk 0:03:00]}  Na5 {[%clk 0:02:59]} 8. g3 {[%clk 0:02:58]}  Ne7 {[%clk 0:02:57]} 9. Bh3 {[%clk 0:02:58]}  Bd7 {[%clk 0:02:58]} 10. O-O {[%clk 0:02:56]}  h6 {[%clk 0:02:58]} 11. Re1 {[%clk 0:02:55]}  O-O-O {[%clk 0:02:58]} 12. Nf1 {[%clk 0:02:55]}  Kb8 {[%clk 0:02:56]} 13. Rb1 {[%clk 0:02:52]}  Qc7 {[%clk 0:02:51]} 14. Be3 {[%clk 0:02:39]}  g5 {[%clk 0:02:46]} 15. Bg2 {[%clk 0:02:33]}  Nf5 {[%clk 0:02:44]} 16. g4 {[%clk 0:02:30]}  Nxe3 {[%clk 0:02:30]} 17. fxe3 {[%clk 0:02:30]}  Bg7 {[%clk 0:02:27]} 18. Ng3 {[%clk 0:02:29]}  Rhg8 {[%clk 0:02:23]} 19. Nh5 {[%clk 0:02:25]}  Bh8 {[%clk 0:02:22]} 20. Rf1 {[%clk 0:02:24]}  Be8 {[%clk 0:02:19]} 21. Nd2 {[%clk 0:02:23]}  f5 {[%clk 0:02:03]} 22. exf6 {[%clk 0:02:19]}  Bxh5 {[%clk 0:02:02]} 23. gxh5 {[%clk 0:02:19]}  Rdf8 {[%clk 0:02:02]} 24. e4 {[%clk 0:02:12]}  Bxf6 {[%clk 0:01:47]} 25. e5 {[%clk 0:02:11]}  Bd8 {[%clk 0:01:41]} 26. Bh3 {[%clk 0:01:58]}  Rxf1+ {[%clk 0:01:40]} 27. Qxf1 {[%clk 0:01:56]}  g4 {[%clk 0:01:40]} 28. Bg2 {[%clk 0:01:55]}  Bg5 {[%clk 0:01:39]} 29. Qe2 {[%clk 0:01:55]}  Bxd2 {[%clk 0:01:37]} 30. Qxd2 {[%clk 0:01:54]}  Qg7 {[%clk 0:01:30]} 31. Rf1 {[%clk 0:01:52]}  g3 {[%clk 0:01:30]} 32. h3 {[%clk 0:01:45]}  Qg5 {[%clk 0:01:25]} 33. Qxg5 {[%clk 0:01:41]}  Rxg5 {[%clk 0:01:26]} 34. Rf6 {[%clk 0:01:40]}  Rxh5 {[%clk 0:01:26]} 35. Rxe6 {[%clk 0:01:40]}  Nb3 {[%clk 0:01:24]} 36. Rg6 {[%clk 0:01:31]}  Nc1 {[%clk 0:01:16]} 37. Bf3 {[%clk 0:01:19]}  Rxh3 {[%clk 0:01:14]} 38. e6 {[%clk 0:01:18]}  Kc7 {[%clk 0:01:14]} 39. e7 {[%clk 0:01:15]}  Kd7 {[%clk 0:01:03]} 40. Bg4+ {[%clk 0:01:12]} 1-0


[Site "https://www.chess.com"]